{"text_format":"3","workbook":"xlsx","n_sheets":4,"sheets":["Общая инфраструктура","Рабочее место конкурсантов","Расходные материалы","Личный инструмент участника"],"read":"whole","date_system":"1900"}

{"sheet":"Общая инфраструктура","index":0,"n_rows":81,"n_cols":8,"rows_kept":81,"merged":[[0,0,0,7],[1,0,1,7],[2,0,2,7],[3,0,3,7],[4,0,4,7],[5,0,5,7],[6,0,6,7],[7,0,7,7],[8,0,8,7],[9,0,9,7],[10,0,10,1],[10,2,10,7],[11,0,11,7],[12,0,12,7],[13,0,13,7],[14,0,14,7],[15,0,15,7],[16,0,16,7],[17,0,17,7],[18,0,18,7],[19,0,19,7],[20,0,20,7],[21,0,21,7],[28,0,28,7],[29,0,29,7],[30,0,30,7],[31,0,31,7],[32,0,32,7],[33,0,33,7],[34,0,34,7],[35,0,35,7],[36,0,36,7],[37,0,37,7],[64,0,64,7],[69,0,69,7],[70,0,70,7],[71,0,71,7],[72,0,72,7],[73,0,73,7],[74,0,74,7],[75,0,75,7],[76,0,76,7],[77,0,77,7],[78,0,78,7]]}
["ПРОЕКТ"]
["Инфраструктурный лист для оснащения конкурсной площадки Чемпионата (Региональный этап/Отборочный этап/Финальный этап)\n(Лабораторный медицинский анализ - Юниоры)"]
["Основная информация о конкурсной площадке:"]
["Субъект Российской Федерации: Наименование субъекта РФ"]
["Базовая организация расположения конкурсной площадки: Наименование организации"]
["Адрес базовой организации: город, улица, дом."]
["Главный эксперт: __________________ (ФИО, Контактные данные (телефон, электронная почта)"]
["Технический эксперт: ___________________ (ФИО, Контактные данные (телефон, электронная почта)"]
["Количество экспертов (в том числе с главным экспертом):____"]
["Количество конкурсантов (команд): 5____"]
["Количество рабочих мест: 6"]
["Даты проведения: _______________"]
["Комната Конкурсантов (по количеству конкурсантов)"]
["Требования к обеспечению зоны (коммуникации, площадь, сети, количество рабочих мест и др.): "]
["Площадь зоны: не менее 20 кв.м."]
["Освещение: Допустимо верхнее искусственное освещение ( не менее 400 люкс) "]
["Интернет : Подключение  ноутбуков к беспроводному интернету (с возможностью подключения к проводному интернету) \t"]
["Электричество: 1 подключения к сети  по (220 Вольт и 380 Вольт)\t"]
["Контур заземления для электропитания и сети слаботочных подключений (при необходимости) : не требуется"]
["Покрытие пола: линолиум, кафель или другая обрабатываемая поверхность  -  на всю зону"]
["Подведение/ отведение ГХВС (при необходимости) : не требуется"]
["Подведение сжатого воздуха (при необходимости): не требуется"]
["№","Наименование ","Краткие (рамочные) технические характеристики","Вид","Количество","Единица измерения","Итоговое количество","Рекомендации представителей индустрии (указывается конкретное оборудование)"]
[1,"Стол ","стол компьютерный для офиса","Мебель",5,"шт",5]
[2,"Корзина для мусора","Корзина прямоугольная для офисных помещений. ","Расходные материалы",1,"шт",1]
[3,"Шкаф ","Шкаф для личных вещей","Мебель",1,"шт",1]
[4,"Вешалка","Вешалка 153х74х179 для личных вещей","Мебель",10,"шт",10]
[5,"Стул ","Стул офисный \"Стандарт\"","Мебель",10,"шт",10]
["Комната Экспертов (включая Главного эксперта) (по количеству экспертов)"]
["Требования к обеспечению зоны (коммуникации, площадь, сети, количество рабочих мест и др.): "]
["Площадь зоны: не менее 32 кв.м."]
["Освещение: Допустимо верхнее искусственное освещение ( не менее 400 люкс) "]
["Интернет : Подключение  ноутбуков к беспроводному интернету (с возможностью подключения к проводному интернету) \t"]
["Электричество: 2 подключения к сети  по (220 Вольт и 380 Вольт)\t"]
["Контур заземления для электропитания и сети слаботочных подключений (при необходимости) : не требуется"]
["Покрытие пола: линолиум, кафель или другая обрабатываемая поверхность  -  на всю зону"]
["Подведение/ отведение ГХВС (при необходимости) : не требуется"]
["Подведение сжатого воздуха (при необходимости): не требуется"]
["№","Наименование ","Краткие (рамочные) технические характеристики","Вид","Количество","Единица измерения","Итоговое количество","Рекомендации представителей индустрии (указывается конкретное оборудование)"]
[1,"Ноутбук с беспроводной мышью","4х ядерный","Оборудование IT",1,"шт",{"$f":"E40","v":1}]
[2,"Стол","критически важные характеристики позиции отсутствуют","Мебель",4,"шт",4]
[3,"Шкафы для хранения личных вещей \nс ключом","С ячейками на всех экспертов \n","Мебель",1,"шт",1]
[4,"Стул","критически важные характеристики позиции отсутствуют","Мебель",6,"шт",6]
[5,"Корзина для мусора","критически важные характеристики позиции отсутствуют","Расходные материалы",1,"шт",1]
[6,"Часы настенные","критически важные характеристики позиции отсутствуют","Мебель",1,"шт",1]
[7,"Вешалка для одежды","критически важные характеристики позиции отсутствуют","Мебель",1,"шт",1]
[8,"Зеркало","Напольное","Мебель",1,"шт",1]
[9,"МФУ( принтер, сканер, копир)","Лазерный, формат A4 (210x297 мм), скорость ч/б\nпечати 60 стр/мин, цветной","Оборудование IT",1,"шт",1]
[10,"Сетевой фильтр"," на 5 гнезд","Расходные материалы",1,"шт",1]
[11,"Бумага А4","критически важные характеристики позиции отсутствуют","Канцелярия",1,"упак.",2]
[12,"Ручка шариковая (синий цвет)","критически важные характеристики позиции отсутствуют","Канцелярия",1,"шт. ",10]
[13,"Ножницы","критически важные характеристики позиции отсутствуют","Канцелярия",1,"шт. ",1]
[14,"Флешка 8 Гб","критически важные характеристики позиции отсутствуют","Канцелярия",1,"шт. ",1]
[15,"Маркеры 6 цветов","критически важные характеристики позиции отсутствуют","Канцелярия",1,"набор",1]
[16,"Степлер канцелярский со скобами","критически важные характеристики позиции отсутствуют","Канцелярия",1,"шт. ",1]
[17,"Скобы для степлера","по размеру степлера","Канцелярия",1,"упак.",2]
[18,"Скрепки канцелярские","критически важные характеристики позиции отсутствуют","Канцелярия",1,"упак.",2]
[19,"Файлы А4","критически важные характеристики позиции отсутствуют","Канцелярия",1,"упак.",2]
[20,"Папка-скоросшиватель","критически важные характеристики позиции отсутствуют","Канцелярия",1,"шт. ",2]
[21,"Папка-скоросшиватель \"Корона\"","критически важные характеристики позиции отсутствуют","Канцелярия",1,"шт. ",2]
[22,"Маркер черный","критически важные характеристики позиции отсутствуют","Канцелярия",1,"шт. ",1]
[23,"Нож канцелярский","критически важные характеристики позиции отсутствуют","Канцелярия",1,"шт. ",1]
[24,"Картриджи для принтера","в соответствии с маркой принтера","Расходные материалы",1,"шт. ",2]
[25,"Планшет с зажимом","критически важные характеристики позиции отсутствуют","Канцелярия",1,"шт. ",10]
["Охрана труда и техника безопасности"]
["№","Наименование ","Краткие (рамочные) технические характеристики","Вид","Количество","Единица измерения","Итоговое количество","Рекомендации представителей индустрии (указывается конкретное оборудование)"]
[1,"Огнетушитель углекислотный ОУ-1","Торговая марка: ПОЖТЕХНИКА\nМесто использования: в помещении\nНаполнение: углекислотный\nОгнетушащая способность (площадь): 0.4 кв.м","Охрана труда",1,"шт",{"$f":"E67","v":1}]
[2,"Аптечка для оказания медицинской помощи при аварийных ситуациях","Аптечка для оказания медицинской помощи при аварийных ситуациях","Охрана труда",1,"шт",{"$f":"E68","v":1}]
[3,"Кулер 19 л (холодная/горячая вода)","критически важные характеристики позиции отсутствуют","Охрана труда",1,"шт",{"$f":"E69","v":1}]
["Складское помещение"]
["Требования к обеспечению зоны (коммуникации, площадь, сети, количество рабочих мест и др.): "]
["Площадь зоны: не менее 4 кв.м."]
["Освещение: Допустимо верхнее искусственное освещение ( не менее 400 люкс) "]
["Интернет : Подключение  ноутбуков к беспроводному интернету (с возможностью подключения к проводному интернету) \t"]
["Электричество: ___ подключения к сети  по (220 Вольт и 380 Вольт)\t"]
["Контур заземления для электропитания и сети слаботочных подключений (при необходимости) : не требуется"]
["Покрытие пола: линолиум, кафель или другая обрабатываемая поверхность  -  на всю зону"]
["Подведение/ отведение ГХВС (при необходимости) : не требуется"]
["Подведение сжатого воздуха (при необходимости): не требуется"]
["№","Наименование ","Краткие (рамочные) технические характеристики","Вид","Количество","Единица измерения","Итоговое количество","Рекомендации представителей индустрии (указывается конкретное оборудование)"]
[1,"Стелаж","критически важные характеристики позиции отсутствуют","Мебель",2,"шт",2]

{"sheet":"Рабочее место конкурсантов","index":1,"n_rows":70,"n_cols":8,"rows_kept":70,"merged":[[0,0,0,7],[1,0,1,7],[2,0,2,7],[3,0,3,7],[4,0,4,7],[5,0,5,7],[6,0,6,7],[7,0,7,7],[8,0,8,7],[9,0,9,7],[10,0,10,1],[10,2,10,7],[11,0,11,7],[12,0,12,7],[13,0,13,7],[14,0,14,7],[15,0,15,7],[16,0,16,7],[17,0,17,7],[18,0,18,7],[19,0,19,7],[20,0,20,7],[21,0,21,7],[22,0,22,7],[31,0,31,7],[39,0,39,7],[40,0,40,7],[41,0,41,7],[42,0,42,7],[43,0,43,7],[44,0,44,7],[45,0,45,7],[46,0,46,7],[47,0,47,7],[48,0,48,7],[49,0,49,7],[52,0,52,7],[55,0,55,7],[56,0,56,7],[57,0,57,7],[58,0,58,7],[59,0,59,7],[60,0,60,7],[61,0,61,7],[62,0,62,7],[63,0,63,7],[64,0,64,7],[65,0,65,7],[68,0,68,7]]}
["ПРОЕКТ"]
["Инфраструктурный лист для оснащения конкурсной площадки Чемпионата (Региональный этап/Отборочный этап/Финальный этап)\n(Лабораторный медицинский анализ - Юниоры)"]
["Основная информация о конкурсной площадке:"]
["Субъект Российской Федерации: Наименование субъекта РФ"]
["Базовая организация расположения конкурсной площадки: Наименование организации"]
["Адрес базовой организации: город, улица, дом."]
["Главный эксперт: __________________ (ФИО, Контактные данные (телефон, электронная почта)"]
["Технический эксперт: ___________________ (ФИО, Контактные данные (телефон, электронная почта)"]
["Количество экспертов (в том числе с главным экспертом):____"]
["Количество конкурсантов (команд): 5____"]
["Количество рабочих мест: 6"]
["Даты проведения: _______________"]
["1. Зона для работ предусмотренных в Модулях обязательных к выполнению (инвариант)  (3 рабочих мест) "]
["Рабочее место Конкурсанта (основное оборудование, вспомогательное оборудование, инструмент (по количеству рабочих мест)"]
["Требования к обеспечению зоны (коммуникации, площадь, сети, количество рабочих мест и др.): "]
["Площадь зоны: не менее 84 кв.м."]
["Освещение: Допустимо верхнее искусственное освещение ( не менее 400 люкс) "]
["Интернет : Подключение  ноутбуков к беспроводному интернету (с возможностью подключения к проводному интернету) \t"]
["Электричество: 5 подключения к сети  по (220 Вольт и 380 Вольт)\t"]
["Контур заземления для электропитания и сети слаботочных подключений (при необходимости) : не требуется"]
["Покрытие пола: линолиум, кафель или другая обрабатываемая поверхность  -  на всю зону"]
["Подведение/ отведение ГХВС (при необходимости) : не требуется"]
["Подведение сжатого воздуха (при необходимости): не требуется"]
["№","Наименование ","Краткие (рамочные) технические характеристики","Вид","Количество","Единица измерения","Итоговое количество","Рекомендации представителей индустрии (указывается конкретное оборудование)"]
[1,"Микроскоп  медицинский прямой СХ 31 (Olympus) для лабораторных исследований. ","Современный цифровой микроскоп, со специальной программой для биологических, лабораторных и иных исследований, качественного анализа крови (гемосканирование). Оснащен универсальной оптической системой, настроенной на бесконечность. Встроенный галогеновый осветитель.","оборудование",1,"шт.",1]
[2,"Видеокамера (цветная цифровая камера VidejZavr Standart VZ C 31 S в комплекте с VZ  ПО Catalog)","Камера Д/Н, 1/2.5\" HITACHI HCPS CCD, 942х672, 560 ТВЛ, 0,03 лк (цвет)/0,0003 лк (ч/б) @ F1.2, механический ИК-фильтр,DSP S.I.E 2, ATW, HLC, 3D-DNR, WDR, детектор движения, 12 V DC","оборудование",1,"шт.",1]
[3,"Ноутбук  ",";экран: 15.6\"; разрешение экрана: 1920×1080; процессор: Intel Core i3 7100U; частота: 2.4 ГГц; память: 8192 Мб, DDR4; HDD: 1000 Гб, 5400 об/мин; SSD: 128 Гб; nVidia GeForce 940MX — 2048 Мб; WiFi; Bluetooth; HDMI; WEB-камера; Endless","оборудование",1,"шт.",1]
[4,"Дезар-4","Крепления настенного типа.\nНаличие счетчика времени.\nПрименяется для борьбы с атипичной пневмонией.\nБактерицидная эффективность составляет 99,0%.\n2 лампы мощностью по 15 Вт.\nПредназначен для установки в помещениях II-III типа.\nЭксплуатационный срок ламп: 8000 ч.\nПроизводительность: 70 м3/ч.\nПотребляемая мощность: 150 Вт.\nМощность звука: 39 Дб.\nГолубой цвет.\nПараметры: 890х370х140 мм.\nВес: 6,15 кг.","оборудование",1,"шт.",1]
[5,"Центрифуга лабораторная","Диапазон скорости вращения 1000,1500,2000,2700 об/мин\nШаг установки скорости 4 предустановленных скорости\nМакс. относительное центробежное ускорение (RCF) 1350 G\nСменные роторы Нет\nМаксимальное количество мест 10\nМаксимальный размер применяемых пробирок 18х150 мм\nМаксимальный объем применяемых пробирок 15 мл\nРегулировка времени работы От 1 до 99 мин\nДатчик дисбаланса Нет\nДвухрежимная регулировка скорости (RPM/RCF) Нет\nГабаритные размеры 450х400х265 мм\nМасса 10 кг\nГабаритные размеры в упаковке 465х485х475 мм\nМасса в упаковке 12 кг\nПотребляемая мощность 80 Ватт\nПитание 220 В / 50 Гц","оборудование",1,"шт.",1]
[6,"Лабораторный стол СКДЛ-1-3/1-4 ","Стол лабораторный СКДЛ 1-3 с каркасом из анодированного алюминиевого профиля","мебель",6,"шт.",6]
[7,"Лабораторный стул газ-лифт","Элементы каркаса выполнены из прочных металлических конструкций, окрашенных эпоксидной порошковой краской черного цвета.\nСтул обладает надежным основанием, снабжённым пятью мебельными колесами.\nВ обивке сиденья использована искусственная кожа и поролоновая подкладка.\nРегулировка высота табурета осуществляется посредством механизма газ-лифта Подробнее: https://rcamed.ru/p91336798-stul-meditsinskij-laboratornyj.html","мебель",6,"шт.",6]
["Охрана труда и техника безопасности"]
["№","Наименование ","Краткие (рамочные) технические характеристики","Вид","Количество","Единица измерения","Итоговое количество","Рекомендации представителей индустрии (указывается конкретное оборудование)"]
[1,"Аптечка","Набор первой медицинской помощи универсальный","Охрана труда",1,"шт",2]
[2,"Огнетушитель","Углекислотный","Охрана труда",1,"шт",2]
[3,"Кулер 19 л (холодная/горячая вода)","критически важные характеристики позиции отсутствуют","Охрана труда",1,"шт",{"$f":"E36","v":1}]
[4,"Маски медицинские ","Двухслойные. В упаковке 100 шт.","Охрана труда",1,"упаковка",1]
[5,"Медицинские перчатки S, M, L","Перчатки из нитрила являются самым современным и надежным видом одноразовых перчаток.\nОни лишены недостатков виниловых и латексных перчаток: прочны, эластичны, устойчивы к агрессивной среде и проколам. При этом они гипоаллергенны. В упаковке 100 пар","Охрана труда",1,"упаковка",1]
[6,"Очки защитные","Габариты, мм: 170 x 70 x 40","Охрана труда",3,"шт.",3]
["2. Зона для работ предусмотренных в вариативном модуле В   (1 рабочее место) "]
["Рабочее место Конкурсанта (дополнительное оборудование, инструмент для выполнения модуля (по количеству рабочих мест)"]
["Требования к обеспечению зоны (коммуникации, площадь, сети, количество рабочих мест и др.): "]
["Площадь зоны: не менее 84 кв.м."]
["Освещение: Допустимо верхнее искусственное освещение ( не менее 400 люкс) "]
["Интернет : Подключение  ноутбуков к беспроводному интернету (с возможностью подключения к проводному интернету) \t"]
["Электричество: 1 подключения к сети  по (220 Вольт и 380 Вольт)\t"]
["Контур заземления для электропитания и сети слаботочных подключений (при необходимости) : не требуется"]
["Покрытие пола: линолиум, кафель или другая обрабатываемая поверхность  -  на всю зону"]
["Подведение/ отведение ГХВС (при необходимости) : не требуется"]
["Подведение сжатого воздуха (при необходимости): не требуется"]
["№","Наименование ","Краткие (рамочные) технические характеристики","Вид","Количество","Единица измерения","Итоговое количество","Рекомендации представителей индустрии (указывается конкретное оборудование)"]
[1,"Ламинарный шкаф","Модель ACB–4A1 ACB–6A1\nНоминальный размер, м 1,2 1,8\nВнешние\nразмеры,\nш×г×в Без подставки 1340×629,5×983 1950×629,5×983\nС опциональной подставкой высотой 711 мм 1340×629,5×1694 1950×629,5×1694\nРазмеры рабочей зоны, ш×г×в, мм 1270×544×570 1880×544×570\nПлощадь рабочей зоны, м2 0,69 1,02\nСкорость воздушного потока при заводских установках 0,30 м/с\nВоздушный поток, м3/ч 678 1004\nТипичная эффективность фильтра HEPA 99,99% для частиц размером 0,3 мкм\nУровень шума согласно IEST–RP–CC002.2, дБ* <61 <63\nОсвещенность на нулевом уровне >800 лк\nКорпус гальванизированная сталь марки 18 1,2 мм, покрытие из белой порошковой эмали с последующей термообработкой\nРабочая зона нержавеющая сталь марки 304 1,2 мм, обработка 4B\nБоковые стенки Закалённое стекло\nПотребляемая мощность, Вт 350 600\nПотребляемый ток, А 1,8 3,2\nТок в розетках, А 5 5\nОбщий ток, А 6,8 8,2\nТепловыделение, Вт 123 204\nВес нетто, кг 140 182\nВес брутто, кг 178 231\nМаксимальные транспортные размеры, ш×г×в, мм 1430×749,5×1233 2110×749,5×1233\nМаксимальный транспортный объем, м3 1,32 1,95\nЭлектропитание ~ 220–240 В, 50 Гц, 1 фаза","оборудование",1,"шт",1]
["Охрана труда и техника безопасности (дополнительно)"]
["№","Наименование ","Краткие (рамочные) технические характеристики","Вид","Количество","Единица измерения","Итоговое количество","Рекомендации представителей индустрии (указывается конкретное оборудование)"]
[]
["3. Зона для работ предусмотренных в вариативном модуле Д (1 рабочее место) "]
["Рабочее место Конкурсанта (дополнительное оборудование, инструмент для выполнения модуля (по количеству рабочих мест)"]
["Требования к обеспечению зоны (коммуникации, площадь, сети, количество рабочих мест и др.): "]
["Площадь зоны: не менее 84 кв.м."]
["Освещение: Допустимо верхнее искусственное освещение ( не менее 400 люкс) "]
["Интернет : Подключение  ноутбуков к беспроводному интернету (с возможностью подключения к проводному интернету) \t"]
["Электричество: ___ подключения к сети  по (220 Вольт и 380 Вольт)\t"]
["Контур заземления для электропитания и сети слаботочных подключений (при необходимости) : не требуется"]
["Покрытие пола: линолиум, кафель или другая обрабатываемая поверхность  -  на всю зону"]
["Подведение/ отведение ГХВС (при необходимости) : не требуется"]
["Подведение сжатого воздуха (при необходимости): не требуется"]
["№","Наименование ","Краткие (рамочные) технические характеристики","Вид","Количество","Единица измерения","Итоговое количество","Рекомендации представителей индустрии (указывается конкретное оборудование)"]
[1,"Гигрометр психрометрический ВИТ-1","Прибор для измерения температуры и влажности в помещении","Оборудование",1,"шт",1]
["Охрана труда и техника безопасности (дополнительно)"]
["№","Наименование ","Краткие (рамочные) технические характеристики","Вид","Количество","Единица измерения","Итоговое количество","Рекомендации представителей индустрии (указывается конкретное оборудование)"]

{"sheet":"Расходные материалы","index":2,"n_rows":87,"n_cols":8,"rows_kept":87,"merged":[[0,0,0,7],[1,0,1,7],[2,0,2,7],[3,0,3,7],[4,0,4,7],[5,0,5,7],[6,0,6,7],[7,0,7,7],[8,0,8,7],[9,0,9,7],[10,0,10,1],[10,2,10,7],[11,0,11,7],[12,0,12,7],[13,0,13,7],[61,0,61,7],[66,0,66,7],[71,0,71,7],[72,0,72,7],[78,0,78,7],[81,0,81,7],[82,0,82,7],[85,0,85,7]]}
["ПРОЕКТ"]
["Инфраструктурный лист для оснащения конкурсной площадки Чемпионата (Региональный этап/Отборочный этап/Финальный этап)\n(Лабораторный медицинский анализ - Юниоры)"]
["Основная информация о конкурсной площадке:"]
["Субъект Российской Федерации: Наименование субъекта РФ"]
["Базовая организация расположения конкурсной площадки: Наименование организации"]
["Адрес базовой организации: город, улица, дом."]
["Главный эксперт: __________________ (ФИО, Контактные данные (телефон, электронная почта)"]
["Технический эксперт: ___________________ (ФИО, Контактные данные (телефон, электронная почта)"]
["Количество экспертов (в том числе с главным экспертом):____"]
["Количество конкурсантов (команд): 5"]
["Количество рабочих мест: 3"]
["Даты проведения: _______________"]
["1. Зона для работ предусмотренных в Модулях обязательных к выполнению (инвариант)  (по количеству конкурсантов) "]
["Рабочее место Конкурсанта (расходные материалы по количеству конкурсантов)"]
["№","Наименование ","Краткие (рамочные) технические характеристики","Вид","Количество","Единица измерения","Итоговое количество","Рекомендации представителей индустрии (указывается конкретное оборудование)"]
[1,"Пробирки центрифужные градуировнные","Объем.................... 10 мл\n\nЦена деления......  0,1 мл\n\nДопустимая погрешность.........±0,1 мл\n\nНаружный диаметр..........17,0±0,5 мм\n\nВысота...................... 105+5-1 мм\n","расходный материал",150,"шт.",150]
[{"$f":"1+A16","v":2},"Контейнер  для сбора и дезинфекции использованных изделий, перчаток и т.д. (отходов класса Б) на 1л","Полный объем – 1,6±0,08 л. \nПолезный объем – 1 л. \nГабаритные размеры контейнера (длина x ширина x высота): 223х149х91 мм. \nМасса контейнера: 0,53 кг. ","расходный материал",6,"шт.",6]
[{"$f":"1+A17","v":3},"Дезинфицирующий раствор  с дозатором на 200 мл ","Дезинфицирующее средство предназначено в качестве кожного антисептика для обработки рук","расходный материал",1,"шт.",1]
[4,"Емкость-контейнер для сбора острого одноразового инструментария","Ёмкость-контейнер состоит из ведра, крышки, заглушки и этикетки.","расходный материал",6,"шт.",6]
[5,"Предметные стекла","Предметные стекла незаменимы при изготовлении микропрепаратов для изучения под микроскопом. Они применяются для размещения тончайшего среза изучаемого образца. Предметные стекла имеют однородную структуру и изготовлены из стекла высокой прозрачности.","расходный материал",1,"упаковка",1]
[6,"Шлифованные стекла","Предметные стекла со шлифованными краями предназначены для самостоятельного изготовления микропрепаратов. Они изготовлены из качественного стекла по современным технологиям, обладают высокой степенью прозрачности. Равномерная толщина предметного стекла по всей длине позволяет исследовать даже большие микропрепараты без дополнительной подстройки резкости изображения.","расходный материал",1,"упаковка",1]
[7,"Укладка-контейнер  на 50 пробирок или 10 флаконов -250 мл  или аналог","Контейнер укладка для транспортировки пробирок представляют собой контейнер с плотно прилегающей крышкой.","расходный материал",1,"шт.",1]
[8,"Дезинфицирующие средства  1л с инструкцией","Дезинфицирующие средства обладают высокой антимикробной активностью в отношении грамотрицательных и грамположительных (включая микобактерии туберкулеза) микроорганизмов, Инструкция по преминению распечатывается организаторами площадки с интернет ресурса.","расходный материал",1,"шт.",1]
[9,"Пакеты ПЭ для сбора и утилизации медицинских отходов класса А и Б ( объем 5л.)","Имеют двойную спайку на дне (двойной донный шов) и оснащаются специальными стяжками, которые позволяют быстро и эффективно герметизировать пакеты после их заполнения, специальные информационные окна на пакете (или бирки) упрощают процесс маркировки.","расходный материал",10,"шт.",10]
[10,"Корзина для отходов класса А (10л.)","корзина белого цвета","расходный материал",5,"шт.",5]
[11,"Спирт 96 %","Этиловый спирт 96% представляет собой лёгкую прозрачную жидкость, обладающую характерным не очень приятным запахом и очень жгучим вкусом.","расходный материал",1,"флакон",1]
[12,"Покровные стекла ","В упаковке 100 штук.  Разных размеров по 1 упаковке.","расходный материал",1,"упаковка",1]
[13,"Стеклянные палочки ","Палочки предназначенные для перемешивания жидкости","расходный материал",2,"шт.",2]
[14,"Планшеты (папка для микропрепаратов)","Планшеты для хранения и транспортировки микропрепаратов емкостью от 25 до 100 стекол изготовлены из полимерных материалов высокой механической прочности.","расходный материал",1,"шт.",1]
[15,"Масло иммерсионное  ","Иммерсионное масло иммерсионное масло кедровое масло с показателем преломления, близким к стеклу (n = 1,5). Используется в микроскопии с целью увеличения числовой апертуры объектива за счет уменьшения потерь света","расходный материал",1,"шт.",1]
[16,"Марлевые салфетки  размером: 10 х 10 см. - сложены аналогично, из полоски марли т.е. номинальный размер 10 х 10 см.) нестерильная упакована в запаянный герметичный бумажный пакет и таких пакетов в кол-ве по 10 шт сложены в картонную упаковку ","Марлевые салфетки приготовленные из медицинской марли","расходный материал",50,"шт.",50]
[17,"Стирильный полимерный контейнер.","Одноразовый контейнер для сбора биологического материала","расходный материал",6,"шт.",6]
[18,"Дезинфицирующие салфетки  для  дезинфекции рук. В банке с  дозатором 60 шт. салфеток.","В пластассовой упаковке 60 шт.","расходный материал",3,"шт.",3]
[19,"Жидкое мыло с дозатором","Антибактериальное 500 мл флакон с дозатором","расходный материал",1,"шт.",1]
[20,"Пинцет лабораторный","металлический","расходный материал",1,"шт.",1]
[21,"Карандаш по стеклу или перманентный маркер","на усмотрение организатора","расходный материал",2,"шт.",2]
[22,"журналы для регистрации ","журнал для регистрации образцов общеклинической лаборатории и бракеражный журнал. Готовится непосредственно организаторами площадки.","расходный материал",12,"шт.",12]
[23,"салфетки спиртовые","спиртовые салфетки 60*30 или 60*100 или 110*125.","расходный материал",50,"шт.",50]
[24,"Спирт 70%","спирт этиловый.","расходный материал",1,"шт.",1]
[25,"Бланк для микроскопии гематологических препаратов с микрофотографиями клеток крови","Составляются организатором площадки. ","расходный материал",6,"шт.",6]
[26,"Бланки для микроскопии гистологических препаратов с микрофотографиями тканей органов","Составляются организатором площадки. ","расходный материал",6,"шт.",6]
[27,"Бланки для микроскопии микробиологических препаратов с микрофотографиями бактериальных клеток","Составляются организатором площадки. ","расходный материал",6,"шт.",6]
[28,"Бланк для приготовление дезинфицирующего .раствора","Составляются организатором площадки. ","расходный материал",6,"шт.",6]
[29,"Окрашенный мазок крови для микроскопии","Предоставляется независимой клинической лаборатории в конверте с эталоном ответа.","расходный материал",1,"шт.",1]
[30,"Окрашенный микробиологический препарат ","Предоставляется независимой микробиологической лаборатории в конверте с эталоном ответа. ","расходный материал",1,"шт.",1]
[31,"Окрашенные препараты по гистологии","Предоставляется независимой гистологической лаборатории в конверте с эталоном ответа.","расходный материал",2,"шт.",2]
[32,"Стикер с липким краем для заполнения формы приготовленного дезинфицирующего раствора","стикеры для заполнения","расходный материал",1,"шт.",1]
[33,"Промывалка лабораторная","на усмотрение организатора","расходный материал",1,"шт.",1]
[34,"Бланк результата биохимического исследования","бланка результата в производной форме. На усмотрения организатора","расходный материал",6,"шт.",6]
[35,"Дозатор 1-5 мл","Механический дозатор, одноканальный, переменного объема","расходный материал",2,"шт.",2]
[36,"Дозатор 100-1000 мкл","Механический дозатор, одноканальный, переменного объема","расходный материал",2,"шт.",2]
[37,"Наконечник 1-кан/96 шт. в штат. 100-1000 мкл в штативе","Эти наконечники предназначены для одноканальных дозаторов и для многоканальных дозаторов\nИсполнения: \n2 - 300 мкл\n100 - 1 000 мкл\n1 000 - 5 000 мкл\n","расходный материал",2,"упаковка",2]
[38,"Наконечник 1-кан/96 шт. в штат. 1-5 мл в штативе","Эти наконечники предназначены для одноканальных дозаторов и для многоканальных дозаторов\nИсполнения: \n2 - 300 мкл\n100 - 1 000 мкл\n1 000 - 5 000 мкл\n","расходный материал",2,"упаковка",2]
[39,"Штатив для дозаторов","Универсальный штатив-стойка для дозаторов","расходный материал",4,"шт.",4]
[40,"Штатив для центрифужных пробирок на 10 гнезд","Штатив для пробирок - вид лабораторного оборудование, которое применяется для одновременного размещения нескольких емкостей различного объема.","расходный материал",5,"шт.",5]
[41,"Стакан химический на 50-100 мл","Стеклянный","расходный материал",5,"шт.",5]
[42,"Колба коническая стеклянная плоскодонная на 250 мл с  пробкой","Стеклянная","расходный материал",2,"шт.",2]
[43,"Дистиллированная вода ","Дистиллированная вода – это такая вода, которая очищена от органических и неорганических примесей.","расходный материал",5,"л",5]
[44,"Набор реагентов для проведения биохимического исследования","Используется имитация растворов. Допускается использовать вместо растворов дисттиллированную воду","расходный материал",2,"шт.",2]
[45,"Маркер по стеклу","На усмотрение организатора","расходный материал",2,"шт.",2]
[46,"Аптечка для оказания медицинской помощи при аварийных ситуациях","Аптечка для оказания медицинской помощи при аварийных ситуациях","расходный материал",1,"шт.",1]
["Охрана труда и техника безопасности"]
["№","Наименование ","Краткие (рамочные) технические характеристики","Вид","Количество","Единица измерения","Итоговое количество","Рекомендации представителей индустрии (указывается конкретное оборудование)"]
[1,"Маски медицинские ","Двухслойные. В упаковке 100 шт.","Охрана труда",1,"упаковка",1]
[2,"Медицинские перчатки S, M, L","Перчатки из нитрила являются самым современным и надежным видом одноразовых перчаток.\nОни лишены недостатков виниловых и латексных перчаток: прочны, эластичны, устойчивы к агрессивной среде и проколам. При этом они гипоаллергенны. В упаковке 100 пар","Охрана труда",1,"упаковка",1]
[3,"Очки защитные","Габариты, мм: 170 x 70 x 40","Охрана труда",3,"шт.",3]
["Расходные материалы на всех конкурсантов и экспертов"]
["№","Наименование ","Краткие (рамочные) технические характеристики","Вид","Количество","Единица измерения","Итоговое количество","Рекомендации представителей индустрии (указывается конкретное оборудование)"]
[1,"Ручки","Шариковые синие","Расходные материалы",30,"шт.",{"$f":"E69","v":30}]
[2,"Карандаши","на усмотрение организатора","Расходные материалы",30,"шт.",{"$f":"E70","v":30}]
[3,"Бумага","А4","Расходные материалы",5,"упаковка",5]
["2. Зона для работ предусмотренных в вариативном модуле В (по количеству конкурсантов) "]
["Рабочее место Конкурсанта (расходные материалы по количеству конкурсантов)"]
["№","Наименование ","Краткие (рамочные) технические характеристики","Вид","Количество","Единица измерения","Итоговое количество","Рекомендации представителей индустрии (указывается конкретное оборудование)"]
[1,"Спиртовка"," Горелка для жидкого топлива, содержащая резервуар для спирта, снабжённая крышкой, через которую пропущен фитиль, нижний конец которого размещён в резервуаре, а верхний конец вне его.","расходный материал",1,"шт.",1]
[2,"Петли полистироловые бактериологические на 5мкл, 1мкл, 10мкл.","Петли бактериологические перевивочные пластиковые стерильные. Петли бактериологические изготовлены из полистирола, упакованы и стерилизованы этилендиоксидом или радиационно. ","расходный материал",1,"упаковка",1]
[3,"скошеный агар с \"чистой культурой\"","пробирки со средой агар -агар с проросшей \"чистой культурой\". Готовится непосредственно организаторами площадки","расходный материал",6,"шт.",6]
[4,"пробирки со средой Гисса","пробирки со средой Гисса. Готовится непосредственно организаторами площадки. Для приготовления берется с 1 углеводом (глюкоза или лактоза или др)","расходный материал",6,"шт.",6]
["Охрана труда и техника безопасности (дополнительно)"]
["№","Наименование ","Краткие (рамочные) технические характеристики","Вид","Количество","Единица измерения","Итоговое количество","Рекомендации представителей индустрии (указывается конкретное оборудование)"]
[]
["3. Зона для работ предусмотренных в вариативном модуле Д  (по количеству конкурсантов) "]
["Рабочее место Конкурсанта (расходные материалы по конкурсантов)"]
["№","Наименование ","Краткие (рамочные) технические характеристики","Вид","Количество","Единица измерения","Итоговое количество","Рекомендации представителей индустрии (указывается конкретное оборудование)"]
[1,"Бланки для исследования физических факторов воздушной среды","Составляются организатором площадки. ","Расходный материал",1,"шт (на конкурсанта)",5]
["Охрана труда и техника безопасности (дополнительно)"]
["№","Наименование ","Краткие (рамочные) технические характеристики","Вид","Количество","Единица измерения","Итоговое количество","Рекомендации представителей индустрии (указывается конкретное оборудование)"]

{"sheet":"Личный инструмент участника","index":3,"n_rows":10,"n_cols":7,"rows_kept":10,"merged":[[0,0,0,6],[1,0,1,6],[2,0,2,6]]}
["ПРОЕКТ"]
["Инфраструктурный лист для оснащения конкурсной площадки Чемпионата (Региональный этап/Отборочный этап/Финальный этап)\n(Лабораторный медицинский анализ - Юниоры)"]
["Личный инструмент конкурсанта"]
["№","Наименование ","Краткие (рамочные) технические характеристики","Вид","Количество","Единица измерения","Примечание "]
[1]
[2]
[3]
[4]
[5]
[6]